[Event "Titled Tuesday Blitz March 01 Late 2022"]
[White "Lopez Perdomo, Juan David"]
[Black "Krishnan, Varun"]
[WhiteFideId "4405137"]
[BlackFideId "5054508"]
[WhiteElo "2197"]
[BlackElo "2625"]
[Result "1-0"]
[Round "09"]
[TimeControl "180+1"]
[Date "2022.03.02"]
[WhiteClock "0:00:12"]
[BlackClock "0:00:16"]

1. e4 {[%clk 0:03:00]}  c5 {[%clk 0:02:58]} 2. d4 {[%clk 0:03:01]}  cxd4 {[%clk 0:02:56]} 3. c3 {[%clk 0:03:02]}  d5 {[%clk 0:02:56]} 4. exd5 {[%clk 0:03:02]}  Qxd5 {[%clk 0:02:55]} 5. Nf3 {[%clk 0:03:03]}  Nf6 {[%clk 0:02:55]} 6. cxd4 {[%clk 0:03:03]}  e6 {[%clk 0:02:55]} 7. Be2 {[%clk 0:03:02]}  Be7 {[%clk 0:02:55]} 8. Nc3 {[%clk 0:03:02]}  Qd6 {[%clk 0:02:54]} 9. Bg5 {[%clk 0:03:01]}  O-O {[%clk 0:02:49]} 10. O-O {[%clk 0:03:01]}  Nc6 {[%clk 0:02:46]} 11. Bh4 {[%clk 0:03:02]}  b6 {[%clk 0:02:42]} 12. Bg3 {[%clk 0:02:59]}  Qd8 {[%clk 0:02:40]} 13. Ne5 {[%clk 0:02:48]}  Bb7 {[%clk 0:02:39]} 14. Bf3 {[%clk 0:02:43]}  Nd5 {[%clk 0:02:21]} 15. Nxd5 {[%clk 0:02:38]}  exd5 {[%clk 0:02:22]} 16. Qd3 {[%clk 0:01:53]}  Nxe5 {[%clk 0:02:16]} 17. dxe5 {[%clk 0:01:52]}  Qd7 {[%clk 0:02:08]} 18. Rfd1 {[%clk 0:01:33]}  Rfd8 {[%clk 0:02:03]} 19. Bf4 {[%clk 0:01:19]}  d4 {[%clk 0:01:51]} 20. Rac1 {[%clk 0:00:50]}  Bxf3 {[%clk 0:01:42]} 21. Qxf3 {[%clk 0:00:50]}  Qf5 {[%clk 0:01:37]} 22. Rxd4 {[%clk 0:00:43]}  g5 {[%clk 0:01:18]} 23. g4 {[%clk 0:00:35]}  Qe6 {[%clk 0:01:01]} 24. Bg3 {[%clk 0:00:20]}  Qxa2 {[%clk 0:00:37]} 25. Rxd8+ {[%clk 0:00:20]}  Rxd8 {[%clk 0:00:36]} 26. Rc7 {[%clk 0:00:21]}  Qe6 {[%clk 0:00:26]} 27. Qf5 {[%clk 0:00:19]}  Qxf5 {[%clk 0:00:14]} 28. gxf5 {[%clk 0:00:19]}  Bc5 {[%clk 0:00:14]} 29. Rxa7 {[%clk 0:00:18]}  h5 {[%clk 0:00:14]} 30. h4 {[%clk 0:00:17]}  gxh4 {[%clk 0:00:13]} 31. Bxh4 {[%clk 0:00:16]}  Rd4 {[%clk 0:00:13]} 32. Bg3 {[%clk 0:00:13]}  h4 {[%clk 0:00:13]} 33. Bh2 {[%clk 0:00:12]}  Rd2 {[%clk 0:00:13]} 34. e6 {[%clk 0:00:10]}  fxe6 {[%clk 0:00:09]} 35. fxe6 {[%clk 0:00:09]}  Rxf2 {[%clk 0:00:08]} 36. Kh1 {[%clk 0:00:09]}  h3 {[%clk 0:00:07]} 37. Be5 {[%clk 0:00:08]}  Re2 {[%clk 0:00:06]} 38. Ra8+ {[%clk 0:00:05]}  Kh7 {[%clk 0:00:06]} 39. Rh8+ {[%clk 0:00:05]}  Kg6 {[%clk 0:00:07]} 40. Bc3 {[%clk 0:00:04]}  Rxe6 {[%clk 0:00:05]} 41. Rxh3 {[%clk 0:00:04]}  Kf5 {[%clk 0:00:06]} 42. Rh5+ {[%clk 0:00:03]}  Ke4 {[%clk 0:00:06]} 43. Kg2 {[%clk 0:00:04]}  Kd3 {[%clk 0:00:05]} 44. Kf3 {[%clk 0:00:03]}  Re2 {[%clk 0:00:06]} 45. Rd5+ {[%clk 0:00:02]}  Kc4 {[%clk 0:00:06]} 46. Rxc5+ {[%clk 0:00:02]}  Kxc5 {[%clk 0:00:05]} 47. Kxe2 {[%clk 0:00:02]}  b5 {[%clk 0:00:06]} 48. Kd2 {[%clk 0:00:02]}  b4 {[%clk 0:00:06]} 49. Bh8 {[%clk 0:00:02]}  Kc4 {[%clk 0:00:07]} 50. Kc2 {[%clk 0:00:02]}  Kb5 {[%clk 0:00:07]} 51. Kb3 {[%clk 0:00:03]}  Ka5 {[%clk 0:00:08]} 52. Bg7 {[%clk 0:00:03]}  Kb5 {[%clk 0:00:08]} 53. Bf8 {[%clk 0:00:04]}  Ka5 {[%clk 0:00:08]} 54. Bxb4+ {[%clk 0:00:05]}  Kb5 {[%clk 0:00:09]} 55. Bd2 {[%clk 0:00:05]}  Kc6 {[%clk 0:00:10]} 56. Kc4 {[%clk 0:00:05]}  Kb6 {[%clk 0:00:10]} 57. b4 {[%clk 0:00:06]}  Kc6 {[%clk 0:00:11]} 58. Be3 {[%clk 0:00:07]}  Kb7 {[%clk 0:00:11]} 59. Kb5 {[%clk 0:00:08]}  Kc7 {[%clk 0:00:12]} 60. Ka6 {[%clk 0:00:08]}  Kb8 {[%clk 0:00:13]} 61. b5 {[%clk 0:00:08]}  Ka8 {[%clk 0:00:13]} 62. b6 {[%clk 0:00:08]}  Kb8 {[%clk 0:00:13]} 63. Bf4+ {[%clk 0:00:09]}  Kc8 {[%clk 0:00:13]} 64. b7+ {[%clk 0:00:09]}  Kd7 {[%clk 0:00:14]} 65. b8=Q {[%clk 0:00:10]}  Ke6 {[%clk 0:00:15]} 66. Qe5+ {[%clk 0:00:10]}  Kf7 {[%clk 0:00:15]} 67. Kb6 {[%clk 0:00:11]}  Kg6 {[%clk 0:00:15]} 68. Kc6 {[%clk 0:00:12]}  Kf7 {[%clk 0:00:15]} 69. Kd6 {[%clk 0:00:13]}  Kg6 {[%clk 0:00:16]} 70. Ke7 {[%clk 0:00:12]}  Kh7 {[%clk 0:00:17]} 71. Qh5+ {[%clk 0:00:12]}  Kg7 {[%clk 0:00:16]} 72. Be5+ {[%clk 0:00:12]}  Kg8 {[%clk 0:00:16]} 73. Qh8# {[%clk 0:00:12]} 1-0


[Site "https://www.chess.com"]

[Event "Titled Tuesday Blitz March 01 Late 2022"]
[White "Maksimovic, Bojan"]
[Black "Goryachkina, Aleksandra"]
[WhiteFideId "14408120"]
[BlackFideId "4147103"]
[WhiteElo "2450"]
[BlackElo "2426"]
[Result "1-0"]
[Round "09"]
[TimeControl "180+1"]
[Date "2022.03.01"]
[WhiteClock "0:00:08"]
[BlackClock "0:00:02"]

1. Nf3 {[%clk 0:03:00]}  d5 {[%clk 0:02:59]} 2. e3 {[%clk 0:02:58]}  Nf6 {[%clk 0:02:58]} 3. c4 {[%clk 0:02:58]}  c6 {[%clk 0:02:57]} 4. b3 {[%clk 0:02:59]}  Bf5 {[%clk 0:02:54]} 5. Bb2 {[%clk 0:02:59]}  e6 {[%clk 0:02:54]} 6. Be2 {[%clk 0:02:56]}  Nbd7 {[%clk 0:02:54]} 7. Nh4 {[%clk 0:02:56]}  Bg6 {[%clk 0:02:53]} 8. Nc3 {[%clk 0:02:52]}  Bd6 {[%clk 0:02:52]} 9. d4 {[%clk 0:02:48]}  Qe7 {[%clk 0:02:50]} 10. g3 {[%clk 0:02:46]}  Rd8 {[%clk 0:02:44]} 11. O-O {[%clk 0:02:43]}  O-O {[%clk 0:02:39]} 12. Nxg6 {[%clk 0:02:43]}  hxg6 {[%clk 0:02:40]} 13. a3 {[%clk 0:02:42]}  dxc4 {[%clk 0:02:20]} 14. bxc4 {[%clk 0:02:38]}  e5 {[%clk 0:02:18]} 15. d5 {[%clk 0:02:38]}  cxd5 {[%clk 0:02:12]} 16. cxd5 {[%clk 0:02:10]}  Nc5 {[%clk 0:02:08]} 17. Qc2 {[%clk 0:02:01]}  e4 {[%clk 0:02:06]} 18. a4 {[%clk 0:01:51]}  b6 {[%clk 0:02:02]} 19. Rfd1 {[%clk 0:01:45]}  Be5 {[%clk 0:01:57]} 20. a5 {[%clk 0:01:43]}  Rd6 {[%clk 0:01:42]} 21. axb6 {[%clk 0:01:40]}  axb6 {[%clk 0:01:42]} 22. Bc4 {[%clk 0:01:22]}  Rfd8 {[%clk 0:01:28]} 23. Nb5 {[%clk 0:01:20]}  R6d7 {[%clk 0:01:27]} 24. Bxe5 {[%clk 0:01:17]}  Qxe5 {[%clk 0:01:27]} 25. Nd4 {[%clk 0:00:29]}  Qh5 {[%clk 0:01:23]} 26. Nc6 {[%clk 0:00:22]}  Rc8 {[%clk 0:01:16]} 27. Be2 {[%clk 0:00:21]}  Qh3 {[%clk 0:01:11]} 28. Qc4 {[%clk 0:00:18]}  Ng4 {[%clk 0:00:54]} 29. Bxg4 {[%clk 0:00:18]}  Qxg4 {[%clk 0:00:55]} 30. Ne5 {[%clk 0:00:15]}  Qh3 {[%clk 0:00:49]} 31. Nxd7 {[%clk 0:00:16]}  Qxd7 {[%clk 0:00:50]} 32. Rab1 {[%clk 0:00:16]}  Na4 {[%clk 0:00:37]} 33. Qxe4 {[%clk 0:00:08]}  Nc3 {[%clk 0:00:37]} 34. Qd3 {[%clk 0:00:09]}  Nxb1 {[%clk 0:00:35]} 35. Rxb1 {[%clk 0:00:08]}  Rc5 {[%clk 0:00:31]} 36. e4 {[%clk 0:00:08]}  b5 {[%clk 0:00:31]} 37. d6 {[%clk 0:00:07]}  Rc6 {[%clk 0:00:22]} 38. e5 {[%clk 0:00:07]}  Rc5 {[%clk 0:00:22]} 39. Qd4 {[%clk 0:00:07]}  Rc4 {[%clk 0:00:11]} 40. Qd5 {[%clk 0:00:07]}  Rc2 {[%clk 0:00:04]} 41. Qxb5 {[%clk 0:00:07]}  Qf5 {[%clk 0:00:04]} 42. Qb8+ {[%clk 0:00:06]}  Kh7 {[%clk 0:00:03]} 43. Qb6 {[%clk 0:00:07]}  Rxf2 {[%clk 0:00:01]} 44. Qxf2 {[%clk 0:00:05]}  Qxb1+ {[%clk 0:00:02]} 45. Kg2 {[%clk 0:00:05]}  Qe4+ {[%clk 0:00:03]} 46. Kg1 {[%clk 0:00:02]}  Qd3 {[%clk 0:00:03]} 47. Qf4 {[%clk 0:00:01]}  Qd1+ {[%clk 0:00:03]} 48. Kg2 {[%clk 0:00:02]}  Qc2+ {[%clk 0:00:03]} 49. Kh3 {[%clk 0:00:02]}  Qc8+ {[%clk 0:00:02]} 50. Qg4 {[%clk 0:00:02]}  Qc2 {[%clk 0:00:02]} 51. Qh4+ {[%clk 0:00:03]}  Kg8 {[%clk 0:00:01]} 52. Qd8+ {[%clk 0:00:04]}  Kh7 {[%clk 0:00:01]} 53. Qh4+ {[%clk 0:00:05]}  Kg8 {[%clk 0:00:02]} 54. Qd4 {[%clk 0:00:06]}  Qc8+ {[%clk 0:00:01]} 55. Kg2 {[%clk 0:00:06]}  Qd7 {[%clk 0:00:02]} 56. Kf3 {[%clk 0:00:07]}  f6 {[%clk 0:00:02]} 57. Qd5+ {[%clk 0:00:07]}  Kh7 {[%clk 0:00:02]} 58. e6 {[%clk 0:00:08]}  Qa4 {[%clk 0:00:02]} 59. d7 {[%clk 0:00:08]}  Qa3+ {[%clk 0:00:02]} 60. Ke2 {[%clk 0:00:08]}  Qa2+ {[%clk 0:00:02]} 61. Qxa2 {[%clk 0:00:08]} 1-0


[Site "https://www.chess.com"]

[Event "Titled Tuesday Blitz March 01 Late 2022"]
[White "Maltsevskaya, Aleksandra"]
[Black "Cupid, Kevin"]
[WhiteFideId "24174041"]
[BlackFideId "7700512"]
[WhiteElo "2283"]
[BlackElo "2096"]
[Result "1-0"]
[Round "09"]
[TimeControl "180+1"]
[Date "2022.03.02"]
[WhiteClock "0:02:20"]
[BlackClock "0:01:34"]

1. Nf3 {[%clk 0:03:00]}  d5 {[%clk 0:02:58]} 2. g3 {[%clk 0:03:01]}  Nf6 {[%clk 0:02:58]} 3. d3 {[%clk 0:03:02]}  Bg4 {[%clk 0:02:57]} 4. Nbd2 {[%clk 0:03:03]}  e6 {[%clk 0:02:57]} 5. Bg2 {[%clk 0:03:03]}  c6 {[%clk 0:02:58]} 6. O-O {[%clk 0:03:04]}  Bd6 {[%clk 0:02:58]} 7. h3 {[%clk 0:03:04]}  Bh5 {[%clk 0:02:58]} 8. e4 {[%clk 0:03:05]}  Nbd7 {[%clk 0:02:50]} 9. Re1 {[%clk 0:03:05]}  dxe4 {[%clk 0:02:45]} 10. dxe4 {[%clk 0:03:06]}  Bxf3 {[%clk 0:02:39]} 11. Nxf3 {[%clk 0:03:02]}  Qc7 {[%clk 0:02:38]} 12. Qe2 {[%clk 0:03:02]}  e5 {[%clk 0:02:31]} 13. a4 {[%clk 0:02:38]}  O-O {[%clk 0:02:22]} 14. Nd2 {[%clk 0:02:38]}  Bb4 {[%clk 0:02:19]} 15. c3 {[%clk 0:02:37]}  Be7 {[%clk 0:02:18]} 16. a5 {[%clk 0:02:36]}  Nc5 {[%clk 0:02:13]} 17. b4 {[%clk 0:02:34]}  Ne6 {[%clk 0:02:10]} 18. Nc4 {[%clk 0:02:33]}  b5 {[%clk 0:02:08]} 19. axb6 {[%clk 0:02:33]}  axb6 {[%clk 0:02:08]} 20. Be3 {[%clk 0:02:30]}  Rxa1 {[%clk 0:02:05]} 21. Rxa1 {[%clk 0:02:31]}  c5 {[%clk 0:02:00]} 22. b5 {[%clk 0:02:28]}  Qb7 {[%clk 0:01:57]} 23. Nxe5 {[%clk 0:02:24]}  Ra8 {[%clk 0:01:41]} 24. Rxa8+ {[%clk 0:02:23]}  Qxa8 {[%clk 0:01:41]} 25. Nc6 {[%clk 0:02:23]}  Bf8 {[%clk 0:01:37]} 26. e5 {[%clk 0:02:23]}  Qa1+ {[%clk 0:01:36]} 27. Kh2 {[%clk 0:02:24]}  Nd7 {[%clk 0:01:34]} 28. Qd3 {[%clk 0:02:20]} 1-0


[Site "https://www.chess.com"]

[Event "Titled Tuesday Blitz March 01 Late 2022"]
[White "Martin Barcelo, Carles"]
[Black "Peatman, Carter"]
[WhiteFideId "24561444"]
[BlackFideId "2096480"]
[WhiteElo "1875"]
[BlackElo "2280"]
[Result "1-0"]
[Round "09"]
[TimeControl "180+1"]
[Date "2022.03.02"]
[WhiteClock "0:00:11"]
[BlackClock "0:00:09"]

1. e4 {[%clk 0:02:57]}  c5 {[%clk 0:02:59]} 2. Nf3 {[%clk 0:02:46]}  d6 {[%clk 0:02:58]} 3. d4 {[%clk 0:02:43]}  cxd4 {[%clk 0:02:59]} 4. Qxd4 {[%clk 0:02:44]}  Nc6 {[%clk 0:02:58]} 5. Bb5 {[%clk 0:02:44]}  Bd7 {[%clk 0:02:59]} 6. Qd3 {[%clk 0:02:43]}  Nf6 {[%clk 0:02:58]} 7. c4 {[%clk 0:02:42]}  e6 {[%clk 0:02:54]} 8. Nc3 {[%clk 0:02:40]}  Qc7 {[%clk 0:02:54]} 9. O-O {[%clk 0:02:39]}  a6 {[%clk 0:02:54]} 10. Bxc6 {[%clk 0:02:38]}  Bxc6 {[%clk 0:02:55]} 11. Nd4 {[%clk 0:02:27]}  Bd7 {[%clk 0:02:48]} 12. b3 {[%clk 0:02:25]}  Be7 {[%clk 0:02:49]} 13. Bb2 {[%clk 0:02:25]}  O-O {[%clk 0:02:49]} 14. f4 {[%clk 0:02:19]}  Rfd8 {[%clk 0:02:49]} 15. Rad1 {[%clk 0:02:13]}  Rac8 {[%clk 0:02:49]} 16. Qg3 {[%clk 0:02:12]}  Nh5 {[%clk 0:02:35]} 17. Qf3 {[%clk 0:02:09]}  Nf6 {[%clk 0:02:32]} 18. Kh1 {[%clk 0:02:08]}  Qa5 {[%clk 0:02:23]} 19. a4 {[%clk 0:01:50]}  e5 {[%clk 0:01:59]} 20. Nc2 {[%clk 0:01:42]}  Bg4 {[%clk 0:01:57]} 21. Qg3 {[%clk 0:01:32]}  exf4 {[%clk 0:01:54]} 22. Qxf4 {[%clk 0:01:31]}  Bxd1 {[%clk 0:01:54]} 23. Rxd1 {[%clk 0:01:31]}  Qh5 {[%clk 0:01:51]} 24. Rf1 {[%clk 0:01:31]}  Qg4 {[%clk 0:01:26]} 25. Qf2 {[%clk 0:01:30]}  Rf8 {[%clk 0:01:22]} 26. Ne3 {[%clk 0:01:25]}  Qh5 {[%clk 0:01:14]} 27. Ncd5 {[%clk 0:01:00]}  Nxd5 {[%clk 0:01:13]} 28. Nxd5 {[%clk 0:01:00]}  Bh4 {[%clk 0:00:56]} 29. Qd4 {[%clk 0:00:50]}  Qg6 {[%clk 0:00:45]} 30. Rf4 {[%clk 0:00:46]}  Bd8 {[%clk 0:00:36]} 31. h3 {[%clk 0:00:41]}  f6 {[%clk 0:00:36]} 32. Rg4 {[%clk 0:00:39]}  Qf7 {[%clk 0:00:33]} 33. Qf2 {[%clk 0:00:31]}  Kh8 {[%clk 0:00:34]} 34. Qf5 {[%clk 0:00:26]}  Rc5 {[%clk 0:00:23]} 35. Qf2 {[%clk 0:00:21]}  Qe6 {[%clk 0:00:20]} 36. Qg3 {[%clk 0:00:19]}  Rg8 {[%clk 0:00:20]} 37. Rh4 {[%clk 0:00:14]}  Rxd5 {[%clk 0:00:13]} 38. cxd5 {[%clk 0:00:11]}  Qe7 {[%clk 0:00:12]} 39. Qg6 {[%clk 0:00:10]}  h6 {[%clk 0:00:10]} 40. Bc1 {[%clk 0:00:10]}  Qf8 {[%clk 0:00:09]} 41. Bxh6 {[%clk 0:00:10]}  gxh6 {[%clk 0:00:09]} 42. Rxh6+ {[%clk 0:00:11]} 1-0


[Site "https://www.chess.com"]

[Event "Titled Tuesday Blitz March 01 Late 2022"]
[White "Mirzoev, Azer"]
[Black "Romanchuk, Viktor"]
[WhiteFideId "13400304"]
[BlackFideId "14109271"]
[WhiteElo "2688"]
[BlackElo "2528"]
[Result "0-1"]
[Round "09"]
[TimeControl "180+1"]
[Date "2022.03.02"]
[WhiteClock "0:00:05"]
[BlackClock "0:00:24"]

1. c4 {[%clk 0:02:59]}  c6 {[%clk 0:02:59]} 2. e4 {[%clk 0:02:58]}  d5 {[%clk 0:02:59]} 3. exd5 {[%clk 0:02:58]}  cxd5 {[%clk 0:03:00]} 4. cxd5 {[%clk 0:02:59]}  Qxd5 {[%clk 0:02:59]} 5. Nc3 {[%clk 0:02:59]}  Qd8 {[%clk 0:03:00]} 6. d4 {[%clk 0:02:59]}  Nf6 {[%clk 0:03:00]} 7. Nf3 {[%clk 0:02:58]}  e6 {[%clk 0:03:01]} 8. Bd3 {[%clk 0:02:58]}  Be7 {[%clk 0:03:01]} 9. O-O {[%clk 0:02:58]}  O-O {[%clk 0:03:01]} 10. Re1 {[%clk 0:02:59]}  Nbd7 {[%clk 0:02:59]} 11. Bg5 {[%clk 0:02:56]}  Nb6 {[%clk 0:02:59]} 12. Ne5 {[%clk 0:02:52]}  Bd7 {[%clk 0:02:58]} 13. Qf3 {[%clk 0:02:51]}  Nfd5 {[%clk 0:02:53]} 14. Qh3 {[%clk 0:02:39]}  g6 {[%clk 0:02:51]} 15. Bh6 {[%clk 0:02:38]}  Re8 {[%clk 0:02:51]} 16. Rad1 {[%clk 0:02:34]}  Bf8 {[%clk 0:02:37]} 17. Ne4 {[%clk 0:02:00]}  f6 {[%clk 0:02:23]} 18. Bxf8 {[%clk 0:01:51]}  fxe5 {[%clk 0:02:22]} 19. Bc5 {[%clk 0:01:45]}  exd4 {[%clk 0:02:19]} 20. Bxd4 {[%clk 0:01:43]}  e5 {[%clk 0:02:19]} 21. Qh6 {[%clk 0:01:28]}  exd4 {[%clk 0:02:17]} 22. Ng5 {[%clk 0:01:26]}  Re7 {[%clk 0:02:13]} 23. Be4 {[%clk 0:00:13]}  Qf8 {[%clk 0:01:46]} 24. Qh4 {[%clk 0:00:12]}  Bc6 {[%clk 0:01:01]} 25. Rxd4 {[%clk 0:00:09]}  Nf6 {[%clk 0:00:55]} 26. f3 {[%clk 0:00:06]}  Nxe4 {[%clk 0:00:52]} 27. Nxe4 {[%clk 0:00:06]}  Kh8 {[%clk 0:00:46]} 28. h3 {[%clk 0:00:05]}  Rae8 {[%clk 0:00:44]} 29. Kh1 {[%clk 0:00:04]}  Bxe4 {[%clk 0:00:35]} 30. fxe4 {[%clk 0:00:04]}  Qg7 {[%clk 0:00:33]} 31. e5 {[%clk 0:00:04]}  Rxe5 {[%clk 0:00:31]} 32. Rxe5 {[%clk 0:00:04]}  Qxe5 {[%clk 0:00:30]} 33. Rg4 {[%clk 0:00:03]}  Qe1+ {[%clk 0:00:30]} 34. Qxe1 {[%clk 0:00:03]}  Rxe1+ {[%clk 0:00:31]} 35. Kh2 {[%clk 0:00:04]}  Re2 {[%clk 0:00:31]} 36. Rb4 {[%clk 0:00:04]}  Kg7 {[%clk 0:00:30]} 37. a4 {[%clk 0:00:04]}  Re7 {[%clk 0:00:30]} 38. a5 {[%clk 0:00:04]}  Nd5 {[%clk 0:00:30]} 39. Rb5 {[%clk 0:00:04]}  Rd7 {[%clk 0:00:31]} 40. b3 {[%clk 0:00:04]}  Kf6 {[%clk 0:00:31]} 41. Rc5 {[%clk 0:00:04]}  Ke6 {[%clk 0:00:31]} 42. a6 {[%clk 0:00:04]}  b6 {[%clk 0:00:29]} 43. Rc6+ {[%clk 0:00:04]}  Ke5 {[%clk 0:00:29]} 44. Rc8 {[%clk 0:00:04]}  Nb4 {[%clk 0:00:28]} 45. Re8+ {[%clk 0:00:04]}  Kd6 {[%clk 0:00:28]} 46. g4 {[%clk 0:00:02]}  Nxa6 {[%clk 0:00:28]} 47. Kg3 {[%clk 0:00:03]}  Nc5 {[%clk 0:00:28]} 48. Kf4 {[%clk 0:00:03]}  Nxb3 {[%clk 0:00:28]} 49. Kg5 {[%clk 0:00:03]}  a5 {[%clk 0:00:27]} 50. Kh6 {[%clk 0:00:04]}  a4 {[%clk 0:00:27]} 51. Re3 {[%clk 0:00:04]}  Kc6 {[%clk 0:00:25]} 52. Rc3+ {[%clk 0:00:04]}  Kb5 {[%clk 0:00:25]} 53. Rc8 {[%clk 0:00:04]}  a3 {[%clk 0:00:24]} 54. Ra8 {[%clk 0:00:05]}  Na5 {[%clk 0:00:24]} 0-1


[Site "https://www.chess.com"]

[Event "Titled Tuesday Blitz March 01 Late 2022"]
[White "Moral Garcia, Serafin"]
[Black "Riehle, Marco"]
[WhiteFideId "2201925"]
[BlackFideId "12904392"]
[WhiteElo "2228"]
[BlackElo "2462"]
[Result "1-0"]
[Round "09"]
[TimeControl "180+1"]
[Date "2022.03.02"]
[WhiteClock "0:01:55"]
[BlackClock "0:02:07"]

1. c4 {[%clk 0:03:00]}  e6 {[%clk 0:02:43]} 2. g3 {[%clk 0:02:59]}  d5 {[%clk 0:02:42]} 3. Bg2 {[%clk 0:02:59]}  Nf6 {[%clk 0:02:42]} 4. Nc3 {[%clk 0:02:53]}  d4 {[%clk 0:02:40]} 5. Ne4 {[%clk 0:02:52]}  Nxe4 {[%clk 0:02:40]} 6. Bxe4 {[%clk 0:02:52]}  f5 {[%clk 0:02:41]} 7. Bg2 {[%clk 0:02:51]}  c5 {[%clk 0:02:41]} 8. d3 {[%clk 0:02:50]}  Nc6 {[%clk 0:02:42]} 9. e3 {[%clk 0:02:50]}  e5 {[%clk 0:02:40]} 10. exd4 {[%clk 0:02:45]}  cxd4 {[%clk 0:02:41]} 11. Nf3 {[%clk 0:02:41]}  Bb4+ {[%clk 0:02:39]} 12. Nd2 {[%clk 0:02:40]}  O-O {[%clk 0:02:37]} 13. O-O {[%clk 0:02:40]}  Be6 {[%clk 0:02:35]} 14. a3 {[%clk 0:02:39]}  Bxd2 {[%clk 0:02:34]} 15. Bxd2 {[%clk 0:02:39]}  Bf7 {[%clk 0:02:29]} 16. b4 {[%clk 0:02:36]}  Qe7 {[%clk 0:02:24]} 17. b5 {[%clk 0:02:34]}  Nd8 {[%clk 0:02:23]} 18. Bb4 {[%clk 0:02:34]}  Qe6 {[%clk 0:02:23]} 19. Bxf8 {[%clk 0:02:30]}  Kxf8 {[%clk 0:02:24]} 20. Qe2 {[%clk 0:02:25]}  Bg6 {[%clk 0:02:22]} 21. Bd5 {[%clk 0:02:24]}  Qd6 {[%clk 0:02:11]} 22. Rae1 {[%clk 0:02:21]}  f4 {[%clk 0:02:11]} 23. Qxe5 {[%clk 0:02:19]}  Qxe5 {[%clk 0:02:11]} 24. Rxe5 {[%clk 0:02:19]}  Bxd3 {[%clk 0:02:11]} 25. Rd1 {[%clk 0:02:12]}  Bg6 {[%clk 0:02:09]} 26. Rxd4 {[%clk 0:02:12]}  Nf7 {[%clk 0:02:09]} 27. Rxf4 {[%clk 0:02:08]}  Rd8 {[%clk 0:02:06]} 28. Bxf7 {[%clk 0:02:01]}  Bxf7 {[%clk 0:02:07]} 29. Ref5 {[%clk 0:02:01]}  Rd7 {[%clk 0:02:08]} 30. Kg2 {[%clk 0:01:58]}  Ke8 {[%clk 0:02:06]} 31. Rxf7 {[%clk 0:01:58]}  Rxf7 {[%clk 0:02:07]} 32. Rxf7 {[%clk 0:01:59]}  Kxf7 {[%clk 0:02:08]} 33. Kf3 {[%clk 0:01:59]}  Ke6 {[%clk 0:02:09]} 34. Ke4 {[%clk 0:01:59]}  Kd6 {[%clk 0:02:09]} 35. Kd4 {[%clk 0:01:58]}  b6 {[%clk 0:02:10]} 36. f4 {[%clk 0:01:57]}  h6 {[%clk 0:02:10]} 37. g4 {[%clk 0:01:56]}  g6 {[%clk 0:02:11]} 38. f5 {[%clk 0:01:56]}  g5 {[%clk 0:02:07]} 39. Ke4 {[%clk 0:01:55]}  Ke7 {[%clk 0:02:07]} 40. Ke5 {[%clk 0:01:55]}  a5 {[%clk 0:02:07]} 41. bxa6 {[%clk 0:01:55]} 1-0


[Site "https://www.chess.com"]

[Event "Titled Tuesday Blitz March 01 Late 2022"]
[White "Osmonbekov, Talaibek"]
[Black "Janaszak, Dawid"]
[WhiteFideId "2017253"]
[BlackFideId "1119206"]
[WhiteElo "2135"]
[BlackElo "2199"]
[Result "0-1"]
[Round "09"]
[TimeControl "180+1"]
[Date "2022.03.02"]
[WhiteClock "0:00:01"]
[BlackClock "0:00:04"]

1. d4 {[%clk 0:02:56]}  e6 {[%clk 0:02:59]} 2. e4 {[%clk 0:02:54]}  d5 {[%clk 0:02:57]} 3. e5 {[%clk 0:02:54]}  Bd7 {[%clk 0:02:56]} 4. c3 {[%clk 0:02:55]}  a6 {[%clk 0:02:55]} 5. Nf3 {[%clk 0:02:56]}  c5 {[%clk 0:02:50]} 6. Bd3 {[%clk 0:02:56]}  Bb5 {[%clk 0:02:50]} 7. O-O {[%clk 0:02:54]}  Bxd3 {[%clk 0:02:48]} 8. Qxd3 {[%clk 0:02:55]}  Nc6 {[%clk 0:02:45]} 9. Be3 {[%clk 0:02:55]}  cxd4 {[%clk 0:02:40]} 10. cxd4 {[%clk 0:02:54]}  Nge7 {[%clk 0:02:40]} 11. Nc3 {[%clk 0:02:52]}  Nf5 {[%clk 0:02:41]} 12. Rfc1 {[%clk 0:02:47]}  Be7 {[%clk 0:02:39]} 13. Na4 {[%clk 0:02:41]}  O-O {[%clk 0:02:36]} 14. Nc5 {[%clk 0:02:37]}  Ra7 {[%clk 0:02:32]} 15. a3 {[%clk 0:02:32]}  a5 {[%clk 0:02:02]} 16. Qb5 {[%clk 0:02:21]}  Bxc5 {[%clk 0:01:55]} 17. Rxc5 {[%clk 0:02:18]}  f6 {[%clk 0:01:48]} 18. exf6 {[%clk 0:02:02]}  Qxf6 {[%clk 0:01:49]} 19. Qb6 {[%clk 0:01:55]}  Qe7 {[%clk 0:01:05]} 20. Ne5 {[%clk 0:01:42]}  Nxe3 {[%clk 0:00:51]} 21. fxe3 {[%clk 0:01:10]}  Ra6 {[%clk 0:00:48]} 22. Nxc6 {[%clk 0:01:07]}  Qf6 {[%clk 0:00:47]} 23. Qb5 {[%clk 0:00:39]}  Qf2+ {[%clk 0:00:43]} 24. Kh1 {[%clk 0:00:39]}  Rb6 {[%clk 0:00:33]} 25. Ne7+ {[%clk 0:00:35]}  Kh8 {[%clk 0:00:30]} 26. Qd3 {[%clk 0:00:19]}  Rxb2 {[%clk 0:00:30]} 27. Rg1 {[%clk 0:00:20]}  Rd2 {[%clk 0:00:29]} 28. Qb3 {[%clk 0:00:16]}  a4 {[%clk 0:00:20]} 29. Qxa4 {[%clk 0:00:14]}  Qxe3 {[%clk 0:00:14]} 30. Rcc1 {[%clk 0:00:13]}  Rxd4 {[%clk 0:00:12]} 31. Qd7 {[%clk 0:00:13]}  Rh4 {[%clk 0:00:09]} 32. Ng6+ {[%clk 0:00:07]}  hxg6 {[%clk 0:00:08]} 33. Qe7 {[%clk 0:00:07]}  Rxh2+ {[%clk 0:00:04]} 34. Kxh2 {[%clk 0:00:07]}  Qh6+ {[%clk 0:00:04]} 35. Kg3 {[%clk 0:00:07]}  Qf4+ {[%clk 0:00:05]} 36. Kh3 {[%clk 0:00:07]}  Rf5 {[%clk 0:00:06]} 37. g4 {[%clk 0:00:06]}  Qe3+ {[%clk 0:00:04]} 38. Rg3 {[%clk 0:00:06]}  Qxc1 {[%clk 0:00:04]} 39. gxf5 {[%clk 0:00:06]}  Qh1+ {[%clk 0:00:04]} 40. Kg4 {[%clk 0:00:06]}  gxf5+ {[%clk 0:00:05]} 41. Kg5 {[%clk 0:00:06]}  Kh7 {[%clk 0:00:04]} 42. Kf4 {[%clk 0:00:05]}  Qc1+ {[%clk 0:00:03]} 43. Kf3 {[%clk 0:00:04]}  Qf1+ {[%clk 0:00:02]} 44. Ke3 {[%clk 0:00:04]}  f4+ {[%clk 0:00:03]} 45. Kd2 {[%clk 0:00:02]}  Qf2+ {[%clk 0:00:03]} 46. Kc1 {[%clk 0:00:01]}  fxg3 {[%clk 0:00:04]} 0-1


[Site "https://www.chess.com"]